bitfinex/quotes_BTCUSD_20250114
["timestamp","ask_amount","ask_price","bid_price","bid_amount"]
[1736867394950,0.03920178,96913.0,96912.0,0.05318]
[1736867395136,0.03920178,96913.0,96912.0,0.06018]
[1736867395440,0.03920178,96913.0,96912.0,0.05118]
[1736867395916,0.03920178,96913.0,96912.0,0.05318]
[1736867396771,0.03920178,96913.0,96912.0,0.011]
[1736867396896,0.03920178,96913.0,96912.0,0.002]
[1736867397105,0.06254204,96913.0,96911.0,0.00179046]
[1736867397327,0.06125196,96913.0,96912.0,0.009]
[1736867397548,0.03920178,96913.0,96912.0,0.002]
[1736867397746,0.08490178,96913.0,96912.0,0.004]
[1736867398103,0.08490178,96913.0,96911.0,0.00179046]
[1736867398104,0.1,96912.0,96911.0,0.00179046]
[1736867398310,0.14637258,96912.0,96911.0,0.00179046]
[1736867398528,0.14637258,96912.0,96911.0,0.00379046]
[1736867398749,0.17475739,96912.0,96911.0,0.00379046]
[1736867399334,0.17604754,96912.0,96911.0,0.00379046]
[1736867399715,0.28027446,96912.0,96911.0,0.00379046]
[1736867399931,0.27898431,96912.0,96911.0,0.00379046]
[1736867400287,0.27898431,96912.0,96911.0,0.00179046]
[1736867400707,0.37898431,96912.0,96911.0,0.00179046]
[1736867400911,0.24637258,96912.0,96911.0,0.00179046]
[1736867401156,0.14637258,96912.0,96911.0,0.00179046]
[1736867401359,0.04866266,96912.0,96911.0,0.00179046]
[1736867401565,0.14866266,96912.0,96911.0,0.00179046]
[1736867401971,0.14966266,96912.0,96911.0,0.00279046]
[1736867402111,0.18077385,96912.0,96911.0,0.00179046]
[1736867402320,0.28500077,96912.0,96911.0,0.00179046]
[1736867402528,0.38371069,96912.0,96911.0,0.00179046]
[1736867402998,0.10732,96912.0,96911.0,0.00179046]
[1736867403187,0.2476628,96912.0,96911.0,0.00179046]
[1736867403392,0.24637258,96912.0,96911.0,0.00179046]
[1736867403750,0.3505995,96912.0,96911.0,0.00179046]
[1736867404101,0.1525995,96912.0,96911.0,0.00179046]
[1736867404306,0.04105258,96912.0,96911.0,0.00179046]
[1736867404512,0.03905258,96912.0,96911.0,0.00179046]
[1736867404725,0.14034266,96912.0,96911.0,0.00179046]
[1736867404939,0.05639185,96912.0,96911.0,0.00179046]
[1736867405144,0.04105258,96912.0,96911.0,0.00179046]
[1736867405284,0.0001492,96913.0,96911.0,0.00179046]
[1736867405693,0.002,96912.0,96911.0,0.00179046]
[1736867406297,0.002,96912.0,96911.0,0.30719738]
[1736867406541,0.04105258,96912.0,96911.0,0.05297046]
[1736867406745,0.04234257,96912.0,96911.0,0.00179046]
[1736867407088,0.43079186,96912.0,96911.0,0.00179046]
[1736867407296,0.23905258,96902.0,96901.0,0.01920833]
[1736867407499,0.5768995,96902.0,96901.0,0.00650274]
[1736867407726,0.31535258,96888.0,96887.0,0.09209205]
[1736867407933,0.4195795,96888.0,96887.0,0.09209205]
[1736867408106,0.46153745,96888.0,96887.0,0.09209205]
[1736867408352,0.46153745,96888.0,96848.0,0.09209205]
[1736867408353,0.23905258,96876.0,96848.0,0.09209205]
[1736867408556,0.3432795,96876.0,96848.0,0.09209205]
[1736867408763,0.36525258,96854.0,96848.0,0.09209205]
[1736867408984,0.4767995,96854.0,96848.0,0.09209205]
[1736867409202,0.52447945,96854.0,96848.0,0.09209205]
[1736867409606,0.52447945,96854.0,96809.0,0.09209205]
[1736867409756,0.52447945,96854.0,96853.0,0.00194124]
[1736867409968,0.54489723,96854.0,96853.0,0.00194124]
[1736867410164,0.54489723,96854.0,96809.0,0.09209205]
[1736867410165,0.03905258,96816.0,96809.0,0.09209205]
[1736867410383,0.03905258,96816.0,96815.0,0.05296983]
[1736867411416,0.03905258,96816.0,96815.0,0.05346776]
[1736867411649,0.03905258,96816.0,96815.0,0.06246776]
[1736867412060,0.03905258,96816.0,96815.0,0.00228776]
[1736867413524,0.03905258,96816.0,96815.0,0.01028776]
[1736867413727,0.03905258,96816.0,96815.0,0.00328776]
[1736867413944,0.03905258,96816.0,96815.0,0.00228776]
[1736867413945,0.04005258,96816.0,96815.0,0.00228776]
[1736867414148,0.04005258,96816.0,96815.0,0.05346776]
[1736867414354,0.001,96816.0,96815.0,0.00228776]
[1736867414568,0.04005258,96816.0,96815.0,0.00928776]
[1736867415367,0.03905258,96816.0,96815.0,0.00228776]
[1736867415744,0.03905258,96816.0,96815.0,0.25651468]
[1736867415953,0.03905258,96816.0,96815.0,0.30769468]
[1736867416163,0.03905258,96816.0,96815.0,0.20346776]
[1736867416361,0.03905258,96816.0,96815.0,0.30769468]
[1736867416564,0.00129113,96836.0,96816.0,0.15]
[1736867416805,0.03905258,96821.0,96820.0,0.1351636]
[1736867416927,0.03905258,96821.0,96820.0,0.05118]
[1736867418534,0.03905258,96821.0,96820.0,0.05618]
[1736867418758,0.03905258,96821.0,96820.0,0.05718]
[1736867419485,0.03905258,96821.0,96820.0,0.006]
[1736867419690,0.03905258,96821.0,96820.0,0.001]
[1736867419929,0.03905258,96818.0,96815.0,0.00228776]
[1736867420138,0.03905258,96817.0,96816.0,0.10422692]
[1736867420311,0.03905258,96817.0,96816.0,0.25422692]
[1736867420917,0.00732,96836.0,96817.0,0.15]
[1736867421132,0.03905258,96821.0,96818.0,0.10422692]
[1736867421329,0.03905258,96821.0,96818.0,0.15540692]
[1736867421534,0.03905258,96821.0,96818.0,0.05118]
[1736867421740,0.03905258,96819.0,96818.0,0.05118]
[1736867421937,0.03905258,96816.0,96815.0,0.00228776]
[1736867422561,0.053326,96816.0,96815.0,0.00228776]
[1736867423184,0.25755292,96816.0,96815.0,0.00228776]
[1736867423390,0.25626157,96816.0,96815.0,0.00428776]
[1736867424132,0.35626157,96816.0,96815.0,0.00428776]
[1736867424357,0.35726157,96816.0,96815.0,0.00228776]
[1736867424562,0.36026157,96816.0,96815.0,0.00228776]
[1736867424761,0.35926157,96816.0,96815.0,0.00228776]
[1736867425090,0.36326157,96816.0,96815.0,0.00228776]
[1736867425843,0.36026157,96816.0,96815.0,0.00228776]
[1736867426048,0.26026157,96816.0,96815.0,0.00228776]
[1736867426312,0.36326157,96816.0,96815.0,0.00228776]
[1736867426486,0.35626157,96816.0,96815.0,0.00228776]
[1736867426661,0.36126157,96816.0,96815.0,0.00228776]
[1736867426863,0.36426157,96816.0,96815.0,0.00328776]
[1736867427064,0.37158157,96816.0,96815.0,0.00328776]
[1736867427274,0.62528157,96816.0,96815.0,0.00328776]
[1736867427449,0.26205258,96805.0,96804.0,0.00179298]
[1736867427658,0.4469795,96805.0,96804.0,0.00179298]
[1736867428673,0.23905258,96792.0,96750.0,0.0808]
[1736867428882,0.3432795,96792.0,96750.0,0.0808]
[1736867429082,0.37760745,96792.0,96750.0,0.0808]
[1736867429341,0.45830745,96792.0,96750.0,0.0808]
[1736867429689,0.45830745,96792.0,96744.0,0.0496]
[1736867429891,0.46530745,96792.0,96791.0,0.00285498]
[1736867430312,0.46530745,96792.0,96791.0,0.00185498]
[1736867430313,0.45830745,96792.0,96791.0,0.00185498]
[1736867430514,0.47330745,96792.0,96791.0,0.00385498]
[1736867430799,0.50108028,96792.0,96791.0,0.00385498]
[1736867430999,0.52228186,96792.0,96791.0,0.00385498]
[1736867431602,0.53263009,96792.0,96791.0,0.00385498]
[1736867432198,0.53891382,96792.0,96791.0,0.00385498]
[1736867432443,0.54061557,96792.0,96791.0,0.00385498]
[1736867432802,0.54793557,96792.0,96791.0,0.00385498]
[1736867434513,0.54793557,96792.0,96791.0,0.00285498]
[1736867434514,0.54193557,96792.0,96791.0,0.00285498]
[1736867434716,0.51416274,96792.0,96791.0,0.00285498]
[1736867435134,0.54278926,96792.0,96791.0,0.00285498]
[1736867435763,0.71578926,96792.0,96791.0,0.00285498]
[1736867436198,0.72178926,96792.0,96791.0,0.00385498]
[1736867436886,0.71278926,96792.0,96791.0,0.00285498]
[1736867437294,0.72178926,96792.0,96791.0,0.00385498]
[1736867438217,0.71578926,96792.0,96791.0,0.00285498]
[1736867438851,0.71578926,96792.0,96791.0,0.00533498]
[1736867439228,0.66416274,96792.0,96791.0,0.00533498]
[1736867439443,0.69095559,96792.0,96791.0,0.00533498]
[1736867439843,0.69695559,96792.0,96791.0,0.00633498]
[1736867440258,0.68963559,96792.0,96791.0,0.00633498]
[1736867440518,0.69695559,96792.0,96791.0,0.00633498]
[1736867440908,0.61625559,96792.0,96791.0,0.00633498]
[1736867441079,0.17661321,96792.0,96791.0,0.00633498]
[1736867441279,0.06935806,96792.0,96791.0,0.00633498]
[1736867441511,0.06203806,96792.0,96791.0,0.00633498]
[1736867441674,0.06203806,96792.0,96791.0,0.08663498]
[1736867442072,0.04505258,96792.0,96791.0,0.08563498]
[1736867442491,0.06201643,96792.0,96791.0,0.08663498]
[1736867442739,0.01396385,96792.0,96791.0,0.08563498]
[1736867442910,0.04701643,96792.0,96791.0,0.08463498]
[1736867443139,0.05301643,96792.0,96791.0,0.08563498]
[1736867443337,0.05831807,96792.0,96791.0,0.08563498]
[1736867443542,0.05831807,96792.0,96791.0,0.00533498]
[1736867443746,0.05360981,96792.0,96791.0,0.00433498]
[1736867443941,0.04830817,96792.0,96791.0,0.00433498]
[1736867444163,0.05562817,96792.0,96791.0,0.00170939]
[1736867445214,0.0556281,96792.0,96791.0,0.00170939]
[1736867445356,0.0556281,96792.0,96791.0,0.00370939]
[1736867445552,0.0556281,96792.0,96791.0,0.00170939]
[1736867445798,0.08119091,96792.0,96791.0,0.00170939]
[1736867445994,0.08719091,96792.0,96791.0,0.00270939]
[1736867446195,0.09019091,96792.0,96791.0,0.00270939]
[1736867446575,0.0646281,96792.0,96791.0,0.00270939]
[1736867447315,0.0646281,96792.0,96791.0,0.00450447]
[1736867447622,0.06333643,96792.0,96791.0,0.00450447]
[1736867447794,0.06162813,96792.0,96791.0,0.00450447]
[1736867448403,0.36585505,96792.0,96791.0,0.00450447]
[1736867448602,0.40114886,96792.0,96791.0,0.00450447]
[1736867448804,0.39514886,96792.0,96791.0,0.00350447]
[1736867449008,0.54914886,96792.0,96791.0,0.00350447]
[1736867449223,0.57214886,96792.0,96791.0,0.00350447]
[1736867449388,0.60923592,96792.0,96791.0,0.00350447]
[1736867449787,0.55944307,96792.0,96791.0,0.00350447]
[1736867450032,0.59523592,96792.0,96791.0,0.00450447]
[1736867450260,0.59123592,96792.0,96791.0,0.00450447]
[1736867450482,0.58823592,96792.0,96791.0,0.00350447]
[1736867450690,0.58823592,96792.0,96791.0,0.00450447]
[1736867450691,0.59723592,96792.0,96791.0,0.00450447]
[1736867450903,0.59691592,96792.0,96791.0,0.00550447]
[1736867451113,0.15180498,96792.0,96791.0,0.00550447]
[1736867451289,0.15309676,96792.0,96791.0,0.00550447]
[1736867451503,0.07931064,96792.0,96791.0,0.00550447]
[1736867451703,0.07762817,96792.0,96791.0,0.00550447]
[1736867451901,0.05562817,96792.0,96777.0,0.04632056]
[1736867452087,0.03905258,96778.0,96777.0,0.04632056]
[1736867452463,0.04702691,96778.0,96777.0,0.04646991]
[1736867453618,0.04702691,96778.0,96777.0,0.00014935]
[1736867454645,0.04702691,96778.0,96777.0,0.00114935]
[1736867455219,0.04702691,96778.0,96777.0,0.00014935]
[1736867455392,0.04702691,96778.0,96777.0,0.00414935]
[1736867455592,0.04702691,96778.0,96777.0,0.00014935]
[1736867455956,0.04802691,96778.0,96777.0,0.00014935]
[1736867456153,0.04702691,96778.0,96777.0,0.00014935]
[1736867456371,0.05269077,96778.0,96777.0,0.00014935]
[1736867456583,0.05469077,96778.0,96777.0,0.00014935]
[1736867456782,0.05369077,96778.0,96777.0,0.00014935]
[1736867457187,0.05269077,96778.0,96777.0,0.00314935]
[1736867457506,0.05269077,96778.0,96777.0,0.00414935]
[1736867458142,0.05269077,96778.0,96777.0,0.00314935]
[1736867458355,0.04802691,96778.0,96777.0,0.00014935]
[1736867458758,0.04902691,96778.0,96777.0,0.00014935]
[1736867458974,0.04802691,96778.0,96777.0,0.00014935]
[1736867459180,0.04802691,96778.0,96777.0,0.00194464]
[1736867459710,0.04702691,96778.0,96777.0,0.00194464]
[1736867459885,0.04702691,96778.0,96777.0,0.00394464]
[1736867460089,0.04702691,96778.0,96777.0,0.00194464]
[1736867460864,0.35225383,96778.0,96777.0,0.00194464]
[1736867461065,0.74597561,96778.0,96777.0,0.00194464]
[1736867461241,0.74497561,96778.0,96777.0,0.00194464]
[1736867461448,0.99396302,96778.0,96777.0,0.00194464]
[1736867461609,1.04226302,96778.0,96777.0,0.00194464]
[1736867461827,1.04226302,96778.0,96777.0,0.00394464]
[1736867462257,1.04226302,96778.0,96777.0,0.00194464]
[1736867462456,0.56425258,96757.0,96756.0,0.00178899]
[1736867462655,0.73222476,96757.0,96756.0,0.00178899]
[1736867462873,0.73998564,96757.0,96756.0,0.00178899]
[1736867463076,0.58356038,96757.0,96756.0,0.00178899]
[1736867463278,0.68356038,96757.0,96756.0,0.00178899]
[1736867463489,0.58356038,96757.0,96756.0,0.00178899]
[1736867463657,0.57624038,96757.0,96756.0,0.00178899]
[1736867463865,0.58356038,96757.0,96756.0,0.00178899]
[1736867464068,0.58556038,96757.0,96756.0,0.00178899]
[1736867464275,0.65411642,96757.0,96756.0,0.00178899]
[1736867464479,0.5498895,96757.0,96756.0,0.00178899]
[1736867464961,0.5568895,96757.0,96756.0,0.00278899]
[1736867465159,0.5568895,96757.0,96756.0,0.00178899]
[1736867465383,0.5598895,96757.0,96756.0,0.00178899]
[1736867465602,0.5525695,96757.0,96756.0,0.00178899]
[1736867465819,0.5598895,96757.0,96756.0,0.00178899]
[1736867466023,0.66411642,96757.0,96756.0,0.00178899]
[1736867466224,0.2346895,96757.0,96756.0,0.00178899]
[1736867466465,0.16413346,96757.0,96756.0,0.00178899]
[1736867466669,0.02637313,96757.0,96756.0,0.00178899]
[1736867466872,0.15742571,96757.0,96756.0,0.00178899]
[1736867467301,0.01837313,96757.0,96756.0,0.00178899]
[1736867467469,0.15742571,96757.0,96756.0,0.00178899]
[1736867467664,0.18418815,96757.0,96756.0,0.00178899]
[1736867467869,0.05010571,96757.0,96756.0,0.00178899]
[1736867468074,0.05742564,96757.0,96756.0,0.00178899]
[1736867468307,0.05613346,96757.0,96756.0,0.00178899]
[1736867468657,0.05181346,96757.0,96756.0,0.00178899]
[1736867469467,0.04881346,96757.0,96756.0,0.00178899]
[1736867469679,0.06182402,96757.0,96756.0,0.00178899]
[1736867469880,0.06582402,96757.0,96756.0,0.00178899]
[1736867470087,0.16705094,96757.0,96756.0,0.00178899]
[1736867470311,0.07043622,96757.0,96756.0,0.00178899]
[1736867470502,0.16010562,96757.0,96756.0,0.00178899]
[1736867470714,0.15628754,96757.0,96756.0,0.04818899]
[1736867470918,0.11723496,96757.0,96756.0,0.38834525]
[1736867471118,0.11723496,96757.0,96756.0,0.48331695]
[1736867471329,0.09249907,96771.0,96757.0,0.173]
[1736867471532,0.09249907,96771.0,96770.0,0.432375]
[1736867471743,0.00100401,96778.0,96771.0,0.15]
[1736867471936,0.00100401,96778.0,96774.0,0.206667]
[1736867472189,0.0008548,96804.0,96778.0,0.2243]
[1736867472392,0.03990748,96792.0,96783.0,0.15]
[1736867472589,0.03990748,96792.0,96785.0,0.15]
[1736867472812,0.03990748,96792.0,96787.0,0.15]
[1736867473048,0.03990748,96792.0,96778.0,0.332138]
[1736867473049,0.03905258,96785.0,96784.0,0.05118]
[1736867474007,0.03905258,96785.0,96766.0,0.15]
[1736867474008,0.03905258,96785.0,96768.0,0.01014667]
[1736867474204,0.03905258,96770.0,96769.0,0.25422692]
[1736867474817,0.03905258,96781.0,96769.0,0.10422692]
[1736867475003,0.03990748,96792.0,96785.0,0.15]
[1736867475204,0.03990748,96792.0,96787.0,0.15]
[1736867475414,0.03990748,96792.0,96788.0,0.10422692]
[1736867475814,0.0008549,96792.0,96790.0,0.1255]
[1736867476021,0.0008549,96792.0,96791.0,0.25422692]
[1736867476758,0.0018549,96792.0,96791.0,0.25422692]
[1736867476963,0.0008549,96792.0,96791.0,0.30540692]
[1736867477370,0.0008549,96792.0,96791.0,0.30940692]
[1736867478324,0.0018549,96792.0,96791.0,0.31840692]
[1736867478527,0.0018549,96792.0,96791.0,0.30940692]
[1736867478528,0.0008549,96792.0,96791.0,0.30940692]
[1736867479399,0.0008549,96792.0,96791.0,0.30540692]
[1736867479600,0.0018549,96792.0,96791.0,0.31140692]
[1736867479818,0.03990748,96792.0,96791.0,0.05318]
[1736867479960,0.04456767,96792.0,96791.0,0.05318]
[1736867480160,0.04556767,96792.0,96791.0,0.06218]
[1736867480386,0.00651509,96792.0,96791.0,0.06218]
[1736867480598,0.04556767,96792.0,96791.0,0.06018]
[1736867480861,0.04556767,96792.0,96791.0,0.011]
[1736867481360,0.04456767,96792.0,96791.0,0.002]
[1736867481773,0.04556767,96792.0,96791.0,0.008]
[1736867481995,0.05188767,96792.0,96791.0,0.002]
[1736867482195,0.0683682,96792.0,96791.0,0.002]
[1736867482390,0.0683682,96792.0,96753.0,0.0758]
[1736867482391,0.03905258,96786.0,96781.0,0.15]
[1736867482552,0.03905258,96786.0,96782.0,0.10422692]
[1736867482939,0.03905258,96785.0,96782.0,0.10422692]
[1736867483093,0.03905258,96784.0,96783.0,0.15]
[1736867483300,0.03905258,96784.0,96783.0,0.25422692]
[1736867483705,0.04290748,96792.0,96783.0,0.25422692]
[1736867483864,0.04290748,96792.0,96787.0,0.15]
[1736867484080,0.0038549,96792.0,96791.0,0.15]
[1736867484269,0.0038549,96792.0,96791.0,0.25422692]
[1736867484469,0.0068549,96792.0,96791.0,0.40420692]
[1736867484908,0.0008549,96792.0,96791.0,0.40420692]
[1736867485113,0.0018549,96792.0,96791.0,0.40420692]
[1736867485895,0.0018549,96792.0,96791.0,0.38120692]
[1736867485896,0.0008549,96792.0,96791.0,0.38120692]
[1736867486302,0.0018549,96792.0,96791.0,0.38820692]
[1736867486747,0.0018549,96792.0,96791.0,0.41520692]
[1736867487127,0.0018549,96792.0,96791.0,0.41120692]
[1736867487652,0.0008549,96792.0,96791.0,0.38420692]
[1736867487911,0.0008549,96792.0,96791.0,0.39120692]
[1736867487912,0.0018549,96792.0,96791.0,0.39120692]
[1736867488116,0.0018549,96792.0,96791.0,0.05418]
[1736867488319,0.04090748,96792.0,96791.0,0.05418]
[1736867488523,0.04660924,96792.0,96791.0,0.06118]
[1736867488724,0.04660924,96792.0,96791.0,0.16540692]
[1736867488837,0.00655666,96792.0,96791.0,0.15840692]
[1736867489040,0.00755666,96792.0,96791.0,0.46390692]
[1736867489279,0.0028549,96792.0,96791.0,0.46390692]
[1736867489502,0.0008548,96804.0,96793.0,0.1]
[1736867489711,0.0008548,96804.0,96801.0,0.15]
[1736867489915,0.0008548,96804.0,96803.0,0.15]
[1736867490117,0.0008548,96804.0,96803.0,0.30540692]
[1736867490321,0.0008548,96804.0,96803.0,0.32840692]
[1736867490802,0.0008548,96804.0,96803.0,0.50420692]
[1736867491586,0.0008548,96804.0,96803.0,0.50720692]
[1736867491786,0.0008548,96804.0,96803.0,0.57715434]
[1736867492186,0.0008548,96804.0,96803.0,0.56815434]
[1736867492396,0.0008548,96804.0,96803.0,0.57715434]
[1736867492595,0.0008548,96804.0,96803.0,0.58757647]
[1736867492773,0.0008548,96804.0,96803.0,2.08457647]
[1736867493190,0.0008548,96804.0,96803.0,2.08957647]
[1736867493400,0.03905258,96843.0,96818.0,0.1]
[1736867493610,0.00492014,96842.0,96829.0,0.15]
[1736867493948,0.00049793,96843.0,96832.0,0.023]
[1736867494091,0.00049793,96843.0,96834.0,0.023]
[1736867494303,0.00049793,96843.0,96836.0,0.173]
[1736867494506,0.00049793,96843.0,96842.0,0.27722692]
[1736867494714,0.00049793,96843.0,96842.0,0.37722692]
[1736867495528,0.00135283,96843.0,96842.0,0.47367504]
[1736867495820,5e-07,96843.0,96842.0,0.47367504]
[1736867496020,0.0008544,96852.0,96850.0,0.023]
[1736867496175,0.00100371,96852.0,96851.0,0.37722692]
[1736867496381,0.00100371,96852.0,96851.0,0.27722692]
[1736867496745,0.00100371,96852.0,96851.0,0.32840692]
[1736867497273,0.00100371,96852.0,96851.0,0.43340692]
[1736867497730,0.00100371,96852.0,96851.0,0.42840692]
[1736867497944,0.00100371,96852.0,96851.0,0.32840692]
[1736867498141,0.00100371,96852.0,96851.0,0.33140692]
[1736867498344,0.00100371,96852.0,96851.0,0.43140692]
[1736867498768,0.00100371,96852.0,96851.0,0.49235434]
[1736867499362,0.00100371,96852.0,96851.0,2.00135434]
[1736867499574,0.00100371,96852.0,96851.0,1.94040692]
[1736867499741,0.00100371,96852.0,96851.0,1.93140692]
[1736867500089,0.00100371,96852.0,96851.0,1.94040692]
[1736867500230,0.00100371,96852.0,96851.0,0.44040692]
[1736867500430,0.00100371,96852.0,96851.0,0.43740692]
[1736867501035,0.00100371,96852.0,96851.0,0.44240692]
[1736867501665,0.00100371,96852.0,96851.0,0.43740692]
[1736867501875,0.00100371,96852.0,96851.0,0.44340692]
[1736867502275,0.00100371,96852.0,96851.0,0.49535434]
[1736867502629,0.00100371,96852.0,96851.0,0.50435434]
[1736867502924,0.00100371,96852.0,96851.0,0.49535434]
[1736867503244,0.00100371,96852.0,96851.0,0.49835434]
[1736867503568,0.00100371,96852.0,96851.0,0.50435434]
[1736867503764,0.000855,96875.0,96868.0,0.1]
[1736867503953,0.000855,96875.0,96873.0,0.023]
[1736867504147,0.000855,96875.0,96874.0,0.27722692]
[1736867504356,0.000855,96875.0,96874.0,0.32840692]
[1736867504980,0.000855,96875.0,96874.0,0.63485992]
[1736867505182,1e-06,96875.0,96874.0,0.94193734]
[1736867505387,0.0008549,96889.0,96874.0,0.94193734]
[1736867505388,0.0008549,96889.0,96888.0,0.1]
[1736867505608,0.00100407,96889.0,96888.0,0.42840692]
[1736867505972,0.00100407,96889.0,96888.0,1.92840692]
[1736867507133,0.00100407,96889.0,96888.0,1.93740692]
[1736867507552,0.00100407,96889.0,96888.0,1.94340692]
[1736867508118,0.00100407,96889.0,96888.0,2.00435434]
[1736867508416,1e-08,96889.0,96888.0,2.2917077]
[1736867508641,1e-08,96889.0,96888.0,2.0959997]
[1736867509074,1e-08,96889.0,96888.0,2.0869997]
[1736867509272,0.0008548,96901.0,96900.0,0.1]
[1736867509470,0.0008548,96901.0,96900.0,0.37722692]
[1736867509690,0.0008548,96901.0,96900.0,1.92840692]
[1736867510069,0.0008548,96901.0,96900.0,1.97420692]
[1736867510660,0.0008548,96901.0,96900.0,2.04015434]
[1736867510994,0.0008548,96901.0,96900.0,2.04915434]
[1736867511392,0.0008548,96901.0,96900.0,2.04415434]
[1736867511718,0.0008549,96940.0,96900.0,2.04415434]
[1736867511719,0.0008549,96940.0,96924.0,0.023]
[1736867512072,0.0008549,96940.0,96926.0,0.379342]
[1736867512073,0.00100177,96935.0,96926.0,0.379342]
[1736867512254,0.00100177,96935.0,96928.0,0.173]
[1736867512420,0.00100177,96935.0,96930.0,0.173]
[1736867512622,0.00100177,96935.0,96933.0,0.023]
[1736867512832,0.00100177,96935.0,96934.0,0.25422692]
[1736867513418,0.00100177,96935.0,96934.0,0.30540692]
[1736867513635,0.00100177,96935.0,96934.0,0.42840692]
[1736867513839,0.00100177,96935.0,96934.0,0.44958563]
[1736867515502,0.00100177,96935.0,96934.0,0.46864137]
[1736867515701,0.00100177,96935.0,96934.0,1.95964137]
[1736867516077,0.00100177,96935.0,96934.0,0.47164137]
[1736867516623,0.00100177,96935.0,96934.0,0.46864137]
[1736867516985,0.00100177,96935.0,96934.0,0.47264137]
[1736867517716,0.00100177,96935.0,96934.0,0.46864137]
[1736867518030,0.00100177,96935.0,96934.0,0.47264137]
[1736867518861,0.00100177,96935.0,96934.0,0.46364137]
[1736867519261,0.00100177,96935.0,96934.0,0.45964137]
[1736867519471,0.00100177,96935.0,96934.0,0.46864137]
[1736867519679,0.00100177,96935.0,96934.0,0.46364137]
[1736867520057,0.00100177,96935.0,96934.0,0.46864137]
[1736867520264,0.00100177,96935.0,96934.0,0.37464137]
[1736867520500,0.00100177,96935.0,96934.0,0.36564137]
[1736867520773,0.00100177,96935.0,96934.0,0.36864137]
[1736867521216,0.00100177,96935.0,96934.0,0.37264137]
[1736867522350,0.00100177,96935.0,96934.0,0.36864137]
[1736867522590,0.00100177,96935.0,96934.0,0.35964137]
[1736867522801,0.00100177,96935.0,96934.0,0.46564137]
[1736867522974,0.00100177,96935.0,96934.0,0.47464137]
[1736867523180,0.00100177,96935.0,96934.0,0.46564137]
[1736867523387,0.00100177,96935.0,96934.0,0.47464137]
[1736867523586,0.00100177,96935.0,96934.0,0.53558879]
[1736867523806,0.00100177,96935.0,96934.0,0.52058879]
[1736867524157,0.00100177,96935.0,96934.0,2.03358879]
[1736867524365,0.00100177,96935.0,96934.0,0.36364137]
[1736867525576,0.00100177,96935.0,96934.0,0.37264137]
[1736867525987,0.00100177,96935.0,96934.0,0.36364137]
[1736867526302,0.00100177,96935.0,96934.0,0.36864137]
[1736867526521,0.00100177,96935.0,96934.0,0.37464137]
[1736867527151,0.00100177,96935.0,96934.0,0.35964137]
[1736867527364,0.00100177,96935.0,96934.0,0.32846266]
[1736867528122,0.00100177,96935.0,96934.0,0.34746266]
[1736867529085,0.00100177,96935.0,96934.0,0.33846266]
[1736867529464,0.00100177,96935.0,96934.0,0.35146266]
[1736867529668,0.00100177,96935.0,96934.0,1.84246266]
[1736867529849,0.00100177,96935.0,96934.0,1.83846266]
[1736867530057,0.00100177,96935.0,96934.0,1.84746266]
[1736867530258,0.00100177,96935.0,96934.0,1.84146266]
[1736867530453,0.00100177,96935.0,96934.0,1.95046266]
[1736867530687,0.00100177,96935.0,96934.0,1.94746266]
[1736867530881,0.00100177,96935.0,96934.0,1.83846266]
[1736867531099,0.00100177,96935.0,96934.0,0.34246266]
[1736867531345,0.00100177,96935.0,96934.0,0.31946266]
[1736867531555,0.00100177,96935.0,96934.0,0.34246266]
[1736867532343,0.00100177,96935.0,96934.0,0.43846266]
[1736867532765,0.00100177,96935.0,96934.0,1.94246266]
[1736867533244,0.00100177,96935.0,96934.0,1.99941008]
[1736867533439,0.0008549,96940.0,96934.0,1.99941008]
[1736867533440,0.0008549,96940.0,96939.0,0.1]
[1736867533687,0.0008549,96940.0,96939.0,0.41933692]
[1736867533688,0.00135194,96940.0,96939.0,0.41933692]
[1736867534274,0.00135194,96940.0,96939.0,0.44973065]
[1736867534496,0.00135194,96940.0,96939.0,0.45128433]
[1736867534693,0.00135194,96940.0,96939.0,0.49067806]
[1736867535557,0.0008531,96947.0,96946.0,0.09093]
[1736867535759,0.0008531,96947.0,96946.0,0.40010433]
[1736867535982,0.0008544,96949.0,96948.0,0.09093]
[1736867536152,0.0008544,96949.0,96948.0,0.69872433]
[1736867536366,0.000853,96973.0,96964.0,0.379262]
[1736867536577,0.00100204,96965.0,96964.0,0.51386598]
[1736867536956,0.00100204,96965.0,96964.0,0.56504598]
[1736867537131,0.00100204,96965.0,96964.0,0.53466892]
[1736867537337,0.00100204,96965.0,96964.0,0.57519087]
[1736867537537,0.00100204,96965.0,96964.0,0.58419087]
[1736867537754,0.00100204,96965.0,96964.0,0.61712586]
[1736867538153,0.00100204,96965.0,96964.0,0.70805586]
[1736867538359,0.00100204,96965.0,96964.0,0.74002275]
[1736867538556,0.00100204,96965.0,96964.0,0.3835187]
[1736867538821,0.00100204,96965.0,96964.0,0.31840692]
[1736867538822,0.04005462,96965.0,96964.0,0.31840692]
[1736867538933,0.02609468,96965.0,96964.0,0.31840692]
[1736867539141,0.0787,96972.0,96964.0,0.31840692]
[1736867539142,0.0787,96972.0,96965.0,0.15]
[1736867539342,0.02694768,96967.0,96966.0,0.25422692]
[1736867539885,0.02694768,96967.0,96966.0,0.27722692]
[1736867540087,0.02694768,96967.0,96966.0,0.30760398]
[1736867540202,0.02694768,96967.0,96966.0,0.27722692]
[1736867540628,0.000853,96967.0,96966.0,0.27822692]
[1736867540837,0.000853,96967.0,96966.0,0.36156084]
[1736867541031,0.000853,96967.0,96966.0,0.3979379]
[1736867542039,0.000853,96967.0,96966.0,0.3969379]
[1736867542176,0.000853,96967.0,96966.0,0.36156084]
[1736867542376,0.000853,96967.0,96966.0,0.38267247]
[1736867542595,0.000853,96967.0,96966.0,0.33363855]
[1736867542797,0.000853,96967.0,96966.0,0.32663855]
[1736867543036,0.000853,96967.0,96966.0,0.32863855]
[1736867543255,0.000853,96967.0,96966.0,0.33763855]
[1736867543459,0.000853,96967.0,96966.0,0.18763855]
[1736867543668,0.16341768,96967.0,96966.0,0.0603]
[1736867543880,0.17997364,96967.0,96966.0,0.0623]
[1736867544074,0.17997364,96967.0,96966.0,0.002]
[1736867544277,0.16341768,96967.0,96966.0,0.011]
[1736867544864,0.15434768,96967.0,96966.0,0.011]
[1736867545040,0.10564768,96967.0,96966.0,0.11522692]
[1736867545607,0.10564768,96967.0,96966.0,0.10622692]
[1736867545762,0.10564768,96967.0,96966.0,0.10722692]
[1736867545978,0.10564768,96967.0,96966.0,0.10922692]
[1736867546179,0.10564768,96967.0,96966.0,0.10622692]
[1736867546784,0.10564768,96967.0,96966.0,0.15752692]
[1736867547776,0.10564768,96967.0,96966.0,0.30752692]
[1736867548803,0.02694768,96967.0,96966.0,1.80552692]
[1736867549090,0.02694768,96967.0,96966.0,1.81152692]
[1736867549780,0.000853,96967.0,96966.0,1.81152692]
[1736867549980,0.000853,96967.0,96966.0,1.82852692]
[1736867550126,0.000853,96967.0,96966.0,1.83452692]